bitfinex/quotes_ETHUSD_20230118
["timestamp","ask_amount","ask_price","bid_price","bid_amount"]
[1674067427310,6.56565,1536.9,1536.5,0.19236236]
[1674067427311,0.059,1536.9,1536.5,13.20891236]
[1674067427444,3.29574759,1536.9,1536.5,13.27091236]
[1674067427654,16.33544,1537.2,1536.5,15.27181911]
[1674067427655,0.059,1537.0,1536.5,15.27181911]
[1674067427917,1.3,1537.2,1536.5,17.26381911]
[1674067428083,1.3,1537.2,1536.6,0.9545252]
[1674067428302,1.3,1537.2,1536.7,19.61678252]
[1674067428514,1.3,1537.2,1536.7,19.68278252]
[1674067428727,1.3110013,1537.2,1536.7,19.58733]
[1674067429059,4.60274889,1537.2,1536.7,19.58733]
[1674067429656,4.60274889,1537.2,1536.7,20.53338802]
[1674067429657,1.3,1537.2,1536.7,20.53338802]
[1674067429911,1.3,1537.2,1536.9,19.51953]
[1674067430239,1.3,1537.2,1537.0,3.011]
[1674067430383,1.3,1537.2,1537.1,19.51725]
[1674067430594,1.3,1537.2,1537.1,19.58325]
[1674067430812,1.3,1537.2,1537.1,1.667]
[1674067431129,0.12184929,1537.4,1537.2,1.0]
[1674067431336,0.12184929,1537.4,1537.3,13.00982]
[1674067431664,0.12184929,1537.4,1537.3,13.07582]
[1674067433986,0.12184929,1537.4,1537.3,19.58073]
[1674067434217,0.0412052,1538.0,1537.4,0.12095071]
[1674067434441,0.0412052,1538.0,1537.6,2.011]
[1674067434602,0.0412052,1538.0,1537.7,19.50939]
[1674067434813,0.0412052,1538.0,1537.7,19.57539]
[1674067435291,0.0412052,1538.0,1537.9,13.00474]
[1674067435461,0.0412052,1538.0,1537.9,13.07074]
[1674067435670,0.04153254,1538.2,1537.9,14.74348952]
[1674067435930,0.04153254,1538.2,1538.1,2.005]
[1674067436235,0.04153254,1538.2,1538.1,23.35409774]
[1674067436557,0.04706419,1538.4,1538.1,22.57556]
[1674067436769,0.04706419,1538.4,1538.2,1.0]
[1674067436921,3.33881178,1538.4,1538.1,0.066]
[1674067437284,3.33881178,1538.4,1537.9,10.17411952]
[1674067437285,3.62562877,1538.3,1537.9,0.066]
[1674067437439,3.62562877,1538.3,1537.8,0.066]
[1674067437440,3.29174759,1538.2,1537.8,0.066]
[1674067437650,3.65431047,1538.2,1537.7,6.56891]
[1674067437903,0.059,1538.3,1537.8,13.00558]
[1674067438120,1.35941351,1538.4,1537.8,13.07158]
[1674067438121,0.04706419,1538.4,1537.8,13.07158]
[1674067438309,0.04706419,1538.4,1537.8,15.87779359]
[1674067438746,0.04706419,1538.4,1537.9,0.84876459]
[1674067439097,0.04706419,1538.4,1538.0,27.85145774]
[1674067439304,0.04706419,1538.4,1538.1,2.84531117]
[1674067439550,0.04706419,1538.4,1538.3,1.0]
[1674067439689,0.04706419,1538.4,1538.3,16.04474862]
[1674067439923,6.419e-05,1538.4,1538.3,18.94938171]
[1674067440258,0.04226797,1538.8,1538.5,25.99903]
[1674067440485,0.04226797,1538.8,1538.5,28.022479]
[1674067441902,0.04226797,1538.8,1538.6,1.0]
[1674067442143,0.04226797,1538.8,1538.7,19.49697]
[1674067442368,0.04226797,1538.8,1538.7,19.56297]
[1674067442970,0.04226797,1538.8,1538.7,21.60635862]
[1674067443205,0.04226797,1538.8,1538.7,28.10534862]
[1674067443780,0.04226797,1538.8,1538.7,6.56499]
[1674067444250,0.04226797,1538.8,1538.7,4.75886427]
[1674067444477,0.04226797,1538.8,1538.7,4.01556703]
[1674067444661,0.04226797,1538.8,1538.7,10.51455703]
[1674067444995,0.04226797,1538.8,1538.7,10.37657645]
[1674067445307,0.04134166,1538.9,1538.8,1.60371801]
[1674067445525,4.166e-05,1538.9,1538.8,22.88904171]
[1674067445713,0.04936795,1539.2,1538.8,22.95504171]
[1674067445923,0.04936795,1539.2,1538.9,3.43580347]
[1674067446255,0.04936795,1539.2,1539.0,25.99088]
[1674067446407,0.04936795,1539.2,1539.0,26.82115979]
[1674067447625,0.04936795,1539.2,1539.1,0.76427979]
[1674067447833,0.04936795,1539.2,1539.1,16.09663727]
[1674067448151,0.04936795,1539.2,1539.1,16.16263727]
[1674067448332,0.04936795,1539.2,1539.1,17.16263727]
[1674067449349,0.04936795,1539.6,1539.2,1.0]
[1674067449667,0.04936795,1539.6,1539.3,26.82443575]
[1674067449871,0.04936795,1539.6,1539.5,19.48683]
[1674067450087,0.04936795,1539.6,1539.5,17.14576059]
[1674067450556,0.04936795,1539.6,1539.5,17.87205803]
[1674067451079,0.04936795,1539.6,1539.5,18.87205803]
[1674067451250,7.95e-06,1539.6,1539.5,20.43513817]
[1674067451462,0.05339389,1540.0,1539.6,1.0]
[1674067451681,0.05339389,1540.0,1539.7,35.47492572]
[1674067451908,0.05339389,1540.0,1539.9,1.999]
[1674067452135,0.05339389,1540.0,1539.9,28.66723398]
[1674067452351,0.04258367,1540.2,1539.9,36.04009165]
[1674067452653,0.04258367,1540.2,1540.1,27.98332]
[1674067452983,0.0060956,1540.7,1540.1,37.69494663]
[1674067453286,0.0060956,1540.7,1540.4,2.003]
[1674067453500,0.0060956,1540.7,1540.5,25.96556]
[1674067453653,0.0060956,1540.7,1540.6,2.011]
[1674067453864,0.9060956,1541.1,1540.6,14.95717854]
[1674067454074,1.68580973,1541.2,1540.6,14.38963345]
[1674067454287,1.99413521,1541.2,1540.7,0.61248348]
[1674067454497,1.99413521,1541.2,1540.8,19.46979]
[1674067454498,0.67560759,1541.2,1540.8,19.46979]
[1674067454809,0.67560759,1541.2,1540.8,20.13985075]
[1674067455023,0.059,1541.4,1540.9,0.60406075]
[1674067455274,1.74480973,1541.7,1541.0,19.4673]
[1674067455494,4.46622856,1541.6,1541.0,19.5333]
[1674067455654,3.29174759,1541.5,1541.0,19.5333]
[1674067455867,3.29174759,1541.5,1541.0,6.55508]
[1674067456074,3.29174759,1541.4,1541.0,0.066]
[1674067456285,3.63192365,1541.4,1540.9,6.55567]
[1674067456548,0.34017606,1541.4,1540.9,13.63680871]
[1674067456775,0.0110013,1541.4,1540.9,13.04538]
[1674067456911,9.77986759,1541.3,1540.9,0.066]
[1674067457121,6.30274889,1541.2,1540.6,10.05672]
[1674067457332,3.29174759,1541.1,1540.6,13.04769]
[1674067457784,4.04798806,1541.2,1540.6,13.04769]
[1674067457785,4.03698676,1541.2,1540.6,13.04769]
[1674067457978,0.0110013,1541.0,1540.6,0.066]
[1674067458210,0.0110013,1541.0,1540.6,6.49097]
[1674067458377,3.29174759,1540.9,1540.6,6.55697]
[1674067458594,0.34017606,1540.8,1540.6,0.066]
[1674067458801,3.29174759,1540.7,1540.4,0.066]
[1674067459071,9.78275759,1540.6,1540.2,0.066]
[1674067459241,1.0,1540.4,1540.0,11.24773003]
[1674067459436,3.29174759,1540.4,1540.0,4.82051003]
[1674067459647,3.29174759,1540.4,1540.0,4.75451003]
[1674067459857,0.32917476,1540.3,1540.0,4.75451003]
[1674067460066,0.059,1540.5,1540.0,8.84177233]
[1674067460344,1.3,1540.6,1540.0,8.90777233]
[1674067460496,1.3,1540.6,1540.0,12.35777233]
[1674067460696,1.3,1540.6,1540.1,1.23577723]
[1674067460907,1.3,1540.6,1540.2,19.47735]
[1674067461165,1.3,1540.6,1540.2,19.54335]
[1674067462225,1.3,1540.6,1540.2,0.066]
[1674067462226,0.0110013,1540.5,1540.2,0.066]
[1674067462437,0.0110013,1540.5,1540.1,0.066]
[1674067462659,0.04647807,1540.1,1540.0,2.29827233]
[1674067462870,0.04647807,1540.1,1540.0,2.98239318]
[1674067463190,0.04647807,1540.1,1540.0,15.28527233]
[1674067463337,0.04647807,1540.1,1540.0,8.85777233]
[1674067464779,0.04647807,1540.1,1540.0,9.33886789]
[1674067465068,0.04647807,1540.1,1540.0,11.57149468]
[1674067465444,0.04647807,1540.1,1540.0,7.65474704]
[1674067465891,0.85847807,1540.1,1540.0,0.066]
[1674067466081,0.85847807,1540.1,1539.9,0.066]
[1674067466315,0.85847807,1540.1,1539.8,0.066]
[1674067466316,0.89784781,1540.0,1539.8,0.066]
[1674067466497,0.89784781,1540.0,1539.7,6.56069]
[1674067466966,0.04647807,1540.1,1539.7,19.55023]
[1674067467281,0.04647807,1540.1,1539.8,0.7009882]
[1674067467603,0.04647807,1540.1,1539.9,19.48176]
[1674067467803,1.34647807,1540.1,1539.9,19.54776]
[1674067468122,1.34647807,1540.1,1539.9,13.05384]
[1674067468432,1.34647807,1540.1,1539.9,6.55992]
[1674067468638,1.48222601,1540.1,1539.9,6.55992]
[1674067469214,1.48222601,1540.1,1539.9,0.066]
[1674067469446,1.48222601,1540.1,1539.8,6.56024]
[1674067469985,1.48222601,1540.1,1539.8,0.066]
[1674067470228,1.48222601,1540.1,1539.7,0.066]
[1674067470229,0.0110013,1540.0,1539.7,0.066]
[1674067470558,3.45097149,1540.0,1539.6,6.56107]
[1674067470729,1.34509715,1539.9,1539.6,6.56107]
[1674067470953,0.34509715,1539.9,1539.6,6.56107]
[1674067471603,1.34509715,1539.9,1539.6,0.066]
[1674067471926,1.34509715,1539.9,1539.5,0.066]
[1674067471927,4.63684474,1539.9,1539.5,0.066]
[1674067472115,0.88453482,1539.5,1539.4,0.002]
[1674067472325,0.88453482,1539.5,1539.3,6.49607]
[1674067472326,0.88453482,1539.5,1539.3,6.56207]
[1674067472541,0.88453482,1539.5,1539.3,0.066]
[1674067472729,0.9729883,1539.5,1539.2,0.066]
[1674067472942,0.1719896,1539.5,1539.2,6.49686]
[1674067473286,0.07253482,1539.5,1539.2,13.05974]
[1674067473503,3.36428241,1539.5,1539.2,0.066]
[1674067473715,0.34742954,1539.4,1539.0,6.70961893]
[1674067474077,1.34742954,1539.4,1539.0,6.70961893]
[1674067474497,1.34742954,1539.4,1539.1,0.0060956]
[1674067474708,0.13474295,1539.3,1539.1,0.0060956]
[1674067474919,1.40642954,1539.4,1539.1,0.0060956]
[1674067475128,0.13153482,1539.5,1539.1,13.0004856]
[1674067475408,0.13153482,1539.5,1539.1,13.8138816]
[1674067475409,0.07253482,1539.5,1539.1,13.8138816]
[1674067475549,0.07253482,1539.5,1539.2,0.747396]
[1674067475759,0.07253482,1539.5,1539.3,0.81791534]
[1674067476100,1.3,1539.6,1539.4,19.48809]
[1674067476297,1.3,1539.6,1539.5,13.99122]
[1674067476521,1.3,1539.6,1539.5,14.05722]
[1674067476718,1.3,1539.6,1539.5,13.05722]
[1674067476976,1.3,1539.6,1539.5,13.78351744]
[1674067477358,0.10547807,1540.1,1539.6,1.0]
[1674067477568,0.10547807,1540.1,1539.8,19.48278]
[1674067477569,0.04647807,1540.1,1539.8,19.48278]
[1674067477803,0.04647807,1540.1,1539.8,20.24133398]
[1674067478055,0.04647807,1540.1,1540.0,19.4805]
[1674067478213,0.04647807,1540.1,1540.0,26.04]
[1674067478429,0.04647807,1540.1,1540.0,24.91954605]
[1674067479058,0.04647807,1540.1,1540.0,24.2354252]
[1674067479256,0.04647807,1540.1,1540.0,4.7549252]
[1674067479465,0.04647807,1540.1,1540.0,4.6889252]
[1674067479713,0.28811037,1540.1,1540.0,4.6889252]
[1674067480246,0.28811037,1540.1,1540.0,23.26890684]
[1674067480428,1.74480973,1540.7,1540.1,0.288]
[1674067480659,0.67560759,1540.7,1540.3,19.47609]
[1674067480888,0.67560759,1540.8,1540.4,2.52608341]
[1674067481078,1.80314132,1540.8,1540.5,20.11168823]
[1674067481438,1.80314132,1540.8,1540.5,0.066]
[1674067481439,0.67560759,1540.7,1540.5,0.066]
[1674067481571,0.67560759,1540.6,1540.4,6.55775]
[1674067481987,1.67560759,1540.6,1540.4,4.15205232]
[1674067482244,1.67560759,1540.6,1540.4,4.08605232]
[1674067482407,0.67560759,1540.6,1540.4,4.08605232]
[1674067482785,0.67560759,1540.6,1540.4,10.57787232]
[1674067482786,1.68580973,1540.6,1540.4,10.57787232]
[1674067483087,1.34944636,1540.7,1540.4,10.64387232]
[1674067483088,2.68580973,1540.7,1540.4,10.64387232]
[1674067483301,1.68580973,1540.7,1540.4,10.64387232]
[1674067483457,0.67560759,1540.7,1540.4,11.28584397]
[1674067483667,0.67560759,1540.7,1540.4,13.06363137]
[1674067483932,0.67560759,1540.7,1540.4,19.55545137]
[1674067484096,1.80318396,1540.7,1540.4,19.55545137]
[1674067484315,0.67560759,1540.7,1540.4,18.87892495]
[1674067484526,0.67560759,1540.8,1540.6,19.47291]
[1674067484737,3.76762747,1540.9,1540.6,20.16824222]
[1674067484738,2.09458786,1540.9,1540.6,20.16824222]
[1674067484978,2.09458786,1540.9,1540.6,20.74342274]
[1674067484979,3.04579,1540.9,1540.6,20.74342274]
[1674067485366,2.03558786,1540.9,1540.6,20.74342274]
[1674067485580,2.03558786,1540.9,1540.7,1.0]
[1674067485834,1.80307016,1540.8,1540.7,12.98059]
[1674067485983,1.80307016,1540.8,1540.7,13.04659]
[1674067486624,1.80307016,1540.8,1540.7,0.066]
[1674067486833,1.80307016,1540.8,1540.5,12.98211]
[1674067486834,0.0373116,1540.6,1540.5,12.98211]
[1674067487043,1.97698525,1540.6,1540.5,0.066]
[1674067487298,3.59823194,1540.6,1540.3,6.55798]
[1674067487456,0.67506758,1540.4,1540.3,0.066]
[1674067487667,0.67506758,1540.4,1540.2,6.52426]
[1674067488941,0.67506758,1540.4,1540.2,13.01692]
[1674067489385,1.09045209,1540.4,1540.2,13.01692]
[1674067489588,0.67506758,1540.3,1540.2,0.032]
[1674067489803,1.80284881,1540.3,1540.1,6.52478]
[1674067489974,0.99925105,1540.3,1540.1,6.52478]
[1674067490186,0.67506758,1540.3,1540.1,13.01786]
[1674067490410,0.68606888,1540.4,1540.1,13.01786]
[1674067490851,0.67506758,1540.4,1540.1,13.68511789]
[1674067491041,1.97506758,1540.5,1540.2,2.03576968]
[1674067491268,1.3,1540.5,1540.3,20.13554805]
[1674067491483,1.3,1540.5,1540.4,1.65461354]
[1674067491652,1.3,1540.5,1540.4,14.63825354]
[1674067491863,1.3,1540.5,1540.4,14.67025354]
[1674067492550,1.3,1540.5,1540.4,14.01564]
[1674067492815,1.3,1540.5,1540.4,6.52382]
[1674067492975,1.3,1540.5,1540.4,0.032]
[1674067493145,3.10271468,1540.5,1540.3,6.52424]
[1674067493365,3.1999069,1540.5,1540.3,0.032]
[1674067493558,3.1999069,1540.5,1540.2,13.01676]
[1674067494039,1.8027889,1540.4,1540.2,13.01676]
[1674067494344,3.2589069,1540.5,1540.2,13.01676]
[1674067494504,2.1873068,1540.5,1540.2,13.01676]
[1674067494719,1.98606888,1540.5,1540.2,13.01676]
[1674067494961,2.99866898,1540.5,1540.2,13.01676]
[1674067495770,1.80278239,1540.4,1540.2,6.52436]
[1674067495974,2.21542077,1540.4,1540.2,6.52436]
[1674067496223,2.81551905,1540.3,1540.2,0.032]
[1674067496437,3.81551905,1540.3,1540.1,6.52501]
[1674067496660,2.68766768,1540.3,1540.1,6.52501]
[1674067496813,1.80293887,1540.2,1540.1,6.52501]
[1674067497025,1.80293887,1540.2,1540.1,0.032]
[1674067497342,2.29644279,1540.3,1540.1,6.49308]
[1674067497547,2.23744279,1540.3,1540.1,6.52508]
[1674067497763,0.67506758,1540.3,1540.1,13.01816]
[1674067498977,0.67506758,1540.4,1540.1,13.01816]
[1674067499290,0.67506758,1540.4,1540.1,13.68541789]
[1674067499819,2.98766768,1540.5,1540.1,13.68541789]
[1674067500177,1.97506758,1540.5,1540.1,13.01816]
[1674067500387,2.81541224,1540.4,1540.1,6.52508]
[1674067500597,1.40936099,1540.3,1540.1,6.52508]
[1674067500859,0.9566088,1540.3,1540.1,6.52508]
[1674067501092,0.9566088,1540.3,1540.2,0.67147322]
[1674067501093,0.67506758,1540.3,1540.2,0.67147322]
[1674067501264,3.71004516,1540.5,1540.2,13.65679322]
[1674067501265,2.03406758,1540.5,1540.2,13.65679322]
[1674067501439,1.97506758,1540.5,1540.2,13.01732]
[1674067501647,1.3,1540.5,1540.2,13.01732]
[1674067501971,1.97506758,1540.5,1540.2,13.01732]
[1674067502179,1.3,1540.5,1540.2,13.01732]
[1674067502401,1.97506758,1540.5,1540.2,13.01732]
[1674067503392,2.41841014,1540.5,1540.2,13.01732]
[1674067504295,2.41841014,1540.5,1540.2,0.032]
[1674067504296,0.67506758,1540.4,1540.2,0.032]
[1674067504490,2.81539486,1540.4,1540.1,6.52508]
[1674067504704,3.27738593,1540.4,1540.1,6.52508]
[1674067504912,2.68766768,1540.4,1540.1,11.81517717]
[1674067505282,2.03406758,1540.5,1540.1,11.81517717]
[1674067505497,1.97506758,1540.5,1540.2,1.0]
[1674067505804,1.97506758,1540.5,1540.3,12.98448]
[1674067505969,1.97506758,1540.5,1540.3,13.01648]
[1674067506328,1.3,1540.5,1540.3,13.01648]
[1674067506539,1.3,1540.5,1540.3,14.967368]
[1674067507999,1.3,1540.5,1540.4,0.65461354]
[1674067508208,1.3,1540.5,1540.4,13.63825354]
[1674067508439,1.3,1540.5,1540.4,13.67025354]
[1674067508626,0.6646,1540.5,1540.4,17.67296873]
[1674067508854,0.0373116,1540.6,1540.4,27.53085432]
[1674067509193,0.0373116,1540.6,1540.5,17.79296534]
[1674067509350,0.0373116,1540.6,1540.5,17.82496534]
[1674067511258,0.0373116,1540.6,1540.5,16.66096534]
[1674067511473,0.0373116,1540.6,1540.5,13.66096534]
[1674067511758,0.0373116,1540.6,1540.5,13.01478]
[1674067512731,0.8493116,1540.6,1540.5,13.01478]
[1674067512946,2.73690049,1540.6,1540.3,6.4919]
[1674067513172,2.73690049,1540.6,1540.5,0.052]
[1674067513173,2.62191044,1540.6,1540.5,0.052]
[1674067513504,2.62191044,1540.6,1540.4,0.01]
[1674067513505,4.07449095,1540.6,1540.4,0.01]
[1674067513663,0.0373116,1540.6,1540.4,12.98362]
[1674067513877,0.0373116,1540.6,1540.4,13.03762]
[1674067514726,0.0373116,1540.6,1540.4,13.03562]
[1674067515181,2.84170505,1540.6,1540.4,13.03762]
[1674067515399,2.81707388,1540.5,1540.4,0.054]
[1674067515589,1.1275763,1540.5,1540.3,6.54603]
[1674067515769,2.8185216,1540.5,1540.3,6.54603]
[1674067516442,1.6909453,1540.5,1540.3,13.03827]
[1674067516661,0.7156568,1540.6,1540.3,14.99279955]
[1674067516809,1.7282569,1540.6,1540.3,14.99279955]
[1674067517023,2.85578433,1540.6,1540.3,14.99279955]
[1674067517339,2.85578433,1540.6,1540.4,2.05024404]
[1674067517340,0.7156568,1540.6,1540.4,2.05024404]
[1674067517572,0.7156568,1540.6,1540.5,19.47417]
[1674067517798,1.84311952,1540.6,1540.5,19.52617]
[1674067518037,0.0373116,1540.6,1540.5,22.1246712]
[1674067518199,0.0373116,1540.6,1540.5,22.1226712]
[1674067519186,0.0373116,1540.6,1540.5,25.1226712]
[1674067520072,0.0373116,1540.6,1540.5,20.16814165]
[1674067520911,0.0373116,1540.6,1540.5,26.96714165]
[1674067520912,1.6e-06,1540.6,1540.5,26.96714165]
[1674067521121,1.3,1540.7,1540.6,1.0]
[1674067521384,1.3,1540.7,1540.6,12.98194]
[1674067521600,1.3,1540.7,1540.6,13.03394]
[1674067522278,1.3,1540.7,1540.6,13.66748509]
[1674067523696,1.3,1540.7,1540.6,13.03394]
[1674067524130,1.3,1540.7,1540.6,13.66748509]
[1674067524296,0.05998027,1540.9,1540.6,13.66748509]
[1674067524642,0.05998027,1540.9,1540.8,19.47039]
[1674067524868,0.05998027,1540.9,1540.8,18.31999243]
[1674067525220,1.86560057,1540.9,1540.8,18.31999243]
[1674067525441,1.07258037,1540.9,1540.8,18.31999243]
[1674067525859,1.07258037,1540.9,1540.8,11.82986243]
[1674067525860,2.87821503,1540.9,1540.8,11.82986243]
[1674067526101,2.19985547,1540.9,1540.8,5.33973243]
[1674067526540,1.86558745,1540.9,1540.8,11.82986243]
[1674067526724,1.86558745,1540.9,1540.8,14.27998693]
[1674067526899,0.05998027,1540.9,1540.8,14.27998693]
[1674067528817,2.7e-07,1540.9,1540.8,21.07898693]
[1674067531313,0.69483844,1541.1,1540.8,21.07898693]
[1674067531529,0.69483844,1541.1,1540.9,2.77961633]
[1674067531838,0.69483844,1541.1,1541.0,26.56122075]
[1674067532048,1.8220063,1541.1,1541.0,26.61322075]
[1674067532704,0.51423628,1541.1,1541.0,26.61322075]
[1674067532890,0.51423628,1541.1,1541.0,28.44664999]
[1674067536813,0.06893234,1541.3,1541.0,28.44664999]
[1674067537076,0.06893234,1541.3,1541.1,1.59142871]
[1674067537394,0.06893234,1541.3,1541.2,26.54101857]
[1674067537616,0.06893234,1541.3,1541.2,26.0058]
[1674067537916,0.06893234,1541.3,1541.2,27.17714435]
[1674067538438,0.01893234,1541.3,1541.2,27.17714435]
[1674067541330,0.83093234,1541.3,1541.2,19.51735]
[1674067541536,0.01893234,1541.3,1541.2,19.51735]
[1674067542433,1.50926442,1541.3,1541.2,0.052]
[1674067542585,3.00615765,1541.3,1541.1,6.44780593]
[1674067542794,1.87910278,1541.3,1541.1,6.44780593]
[1674067543042,1.52026572,1541.3,1541.1,12.93667593]
[1674067543268,0.70826572,1541.3,1541.1,12.93667593]
[1674067544198,0.67833208,1541.2,1541.1,0.002]
[1674067544426,1.82959196,1541.2,1540.9,6.49167]
[1674067544644,0.67833208,1541.2,1540.9,6.49144]
[1674067544791,1.10153374,1541.3,1540.9,6.49144]
[1674067544792,0.02993364,1541.3,1541.0,13.5783898]
[1674067545163,0.01893234,1541.3,1541.2,19.46535]
[1674067545377,0.01893234,1541.3,1541.2,19.46735]
[1674067545534,0.01893234,1541.3,1541.2,12.9789]
[1674067545791,0.01893234,1541.3,1541.2,0.002]
[1674067545792,0.83093234,1541.3,1541.2,0.002]
[1674067546121,2.92386878,1541.3,1541.0,12.97998]
[1674067546338,1.79684147,1541.3,1541.0,6.49098]
[1674067546544,1.79684147,1541.3,1541.0,0.002]
[1674067546545,1.80547521,1541.2,1541.0,0.002]
[1674067546875,1.0,1541.1,1540.8,6.4901]
[1674067547053,1.0,1541.1,1540.8,6.4921]
[1674067547256,1.96539371,1541.1,1540.8,6.4921]
[1674067547851,2.97799381,1541.1,1540.8,6.4921]
[1674067548220,6.2697414,1541.1,1540.8,0.002]
[1674067548433,5.81818816,1541.0,1540.7,0.002]
[1674067548760,0.059,1541.0,1540.9,19.46913]
[1674067548973,3.40191547,1541.3,1540.9,12.98142]
[1674067548974,1.0,1541.2,1540.9,12.98142]
[1674067549203,1.0,1541.2,1540.9,6.49171]
[1674067549397,1.0,1541.2,1540.9,12.98142]
[1674067549594,1.69726442,1541.3,1540.9,12.98142]
[1674067549780,3.8369322,1541.3,1540.9,12.98142]
[1674067550126,0.67833208,1541.2,1540.9,12.98142]
[1674067550339,0.68933338,1541.1,1540.9,0.002]
[1674067550539,0.68933338,1541.1,1540.8,12.9817]
[1674067550748,2.70193348,1541.1,1540.8,12.9817]
[1674067550934,1.70193348,1541.1,1540.8,12.9817]
[1674067551472,0.68933338,1541.1,1540.8,12.9817]
[1674067553457,1.97212683,1541.1,1540.8,12.9817]
[1674067553708,2.81818281,1541.0,1540.8,6.49183]
[1674067553875,1.0,1540.9,1540.8,6.49183]
[1674067554339,0.67833208,1541.0,1540.8,12.98196]
[1674067554988,1.97833208,1541.0,1540.8,12.98196]
[1674067555301,1.97833208,1541.0,1540.8,6.49183]
[1674067555456,2.28442543,1541.0,1540.8,0.002]
[1674067555662,3.13985278,1540.9,1540.7,0.002]
[1674067555870,1.80617361,1540.8,1540.6,6.49265]
[1674067556082,0.67884744,1540.8,1540.6,0.002]
[1674067556290,1.0,1540.7,1540.5,6.49338]
[1674067556502,1.67884744,1540.7,1540.5,6.49338]
[1674067557591,1.80632176,1540.6,1540.5,0.002]
[1674067557805,2.18821395,1540.6,1540.4,0.14190688]
[1674067558023,1.06073963,1540.6,1540.4,0.13990688]
[1674067558454,2.80638703,1540.5,1540.4,0.13990688]
[1674067558888,3.23237496,1540.5,1540.4,0.13990688]
[1674067559104,7.54796708,1540.5,1540.4,0.13990688]
[1674067559263,10.15787651,1540.5,1540.4,0.13990688]
[1674067559711,1.0,1540.2,1540.1,0.21200248]
[1674067559930,1.12614942,1540.2,1540.1,0.14600248]
[1674067560195,7.61880942,1540.2,1540.1,0.14600248]
[1674067560463,0.8820013,1540.2,1540.1,0.14600248]
[1674067560733,0.8230013,1540.2,1540.1,0.14600248]
[1674067561269,17.10006889,1540.2,1540.1,0.14600248]
[1674067561478,22.19550748,1540.2,1540.1,0.14600248]
[1674067561740,24.76531086,1540.2,1540.1,0.09600248]
[1674067561956,2.6774202,1540.2,1540.1,0.09600248]
[1674067562105,0.812,1540.2,1540.1,0.09600248]
[1674067562478,2.9016832,1540.3,1540.1,13.08216248]
[1674067562479,0.1514812,1540.3,1540.1,13.08216248]
[1674067562687,0.1514812,1540.3,1540.1,13.7556357]
[1674067562897,0.1514812,1540.3,1540.2,7.16413322]
[1674067563068,0.1514812,1540.3,1540.2,12.99003554]
[1674067563488,0.1514812,1540.3,1540.2,13.99003554]
[1674067563716,8.12e-05,1540.3,1540.2,18.11506513]
[1674067563940,1.3,1540.6,1540.3,1.0]
[1674067564098,1.3,1540.6,1540.5,19.47417]
[1674067564312,1.3,1540.6,1540.5,20.11814165]
[1674067564584,1.3,1540.6,1540.5,12.98478]
[1674067564872,1.3,1540.6,1540.5,5.290838]
[1674067565085,1.3,1540.6,1540.5,11.782228]
[1674067565702,1.3,1540.6,1540.5,12.42419965]
[1674067566023,1.3,1540.6,1540.5,15.42419965]
[1674067566225,1.3,1540.6,1540.5,16.42419965]
[1674067566458,1.3,1540.6,1540.5,5.290838]
[1674067567000,1.3,1540.6,1540.5,11.782228]
[1674067567574,1.3,1540.6,1540.5,12.782228]
[1674067568153,0.81105762,1541.0,1540.5,12.782228]
[1674067568154,0.13245572,1541.0,1540.5,22.581228]
[1674067568371,0.07345572,1541.0,1540.6,9.139]
[1674067568578,0.07345572,1541.0,1540.8,1.334]
[1674067568730,0.07345572,1541.0,1540.9,20.21501348]
[1674067569088,0.07345572,1541.0,1540.9,6.49171]
[1674067569416,0.88545572,1541.0,1540.9,0.002]
[1674067569622,0.88545572,1541.0,1540.7,0.002]
[1674067569835,0.09954687,1540.9,1540.6,6.49288]
[1674067570006,0.0110013,1540.9,1540.6,12.98385]
[1674067570217,0.81105762,1541.0,1540.6,13.60896963]
[1674067570428,0.75205762,1541.0,1540.6,13.60896963]
[1674067570642,0.76305892,1541.0,1540.6,12.98385]
[1674067570854,0.93952469,1541.0,1540.6,6.49288]
[1674067571067,0.6786019,1540.9,1540.6,6.49288]
[1674067571254,5.32635079,1540.8,1540.6,0.002]
[1674067571463,5.32635079,1540.8,1540.4,0.002]
[1674067571464,4.345,1540.7,1540.4,0.002]
[1674067571674,1.0,1540.6,1540.4,6.49145]
[1674067571934,3.0,1540.7,1540.4,6.49145]
[1674067571935,0.059,1540.7,1540.4,12.98497]
[1674067572104,0.06786019,1540.8,1540.4,12.98497]
[1674067572776,0.74646209,1540.8,1540.4,6.49345]
[1674067572988,0.07464621,1540.7,1540.4,6.49345]
[1674067573360,2.750202,1540.9,1540.4,6.49345]
[1674067573575,1.691202,1540.9,1540.5,0.63354509]
[1674067573901,0.75205762,1541.0,1540.6,20.10200222]
[1674067574114,0.07345572,1541.0,1540.6,20.10400222]
[1674067574466,0.07345572,1541.0,1540.7,0.62090731]
[1674067574615,0.07345572,1541.0,1540.8,20.08708526]
[1674067574829,0.07345572,1541.0,1540.8,20.08908526]
[1674067575040,1.3,1541.1,1540.9,11.75348348]
[1674067575287,1.3,1541.1,1541.0,35.70522075]
[1674067575516,0.01893234,1541.3,1541.0,39.62276415]
[1674067575728,0.06650609,1541.4,1541.2,7.39042871]
[1674067575967,0.06650609,1541.4,1541.3,27.29708]
[1674067576184,0.06650609,1541.4,1541.3,30.7568517]
[1674067577228,0.06650609,1541.4,1541.3,19.46606]
[1674067577606,0.06650609,1541.4,1541.3,22.46606]
[1674067578877,0.87850609,1541.4,1541.3,6.49002]
[1674067579419,0.87850609,1541.4,1541.3,0.002]
[1674067579645,0.87850609,1541.4,1541.2,6.49031]
[1674067579861,0.87850609,1541.4,1541.2,0.002]
[1674067580167,0.87850609,1541.4,1541.1,6.49061]
[1674067580168,1.04172379,1541.4,1541.1,6.49061]
[1674067580747,1.04172379,1541.4,1541.1,12.97948]
[1674067580748,0.06650609,1541.4,1541.1,12.97948]
[1674067580962,0.06650609,1541.4,1541.1,14.31548]
[1674067581828,0.04650609,1541.4,1541.1,14.31548]
[1674067582015,0.04650609,1541.4,1541.3,19.46406]
[1674067582381,0.04650609,1541.4,1541.3,20.81106]
[1674067582539,0.04650609,1541.4,1541.3,23.81106]
[1674067582954,0.04650609,1541.4,1541.3,22.46606]
[1674067583164,0.04650609,1541.4,1541.3,19.46606]
[1674067583438,0.85850609,1541.4,1541.3,0.002]